{"text_format":"1","workbook":"xlsx","n_sheets":4,"sheets":["LÜTFEN OKUYUNUZ","TEBLİGAT GİRİS BİLGİLERİ","NORMAL TEBLİGAT","21'E GÖRE TEBLİGAT"],"not_rendered":{"charts":0,"images":1,"macros":1,"external_links":0,"defined_names":2,"comments":0,"pivot_tables":0},"unopened":[],"bounds":{"document_bytes":16777216,"sheet_cells":100000,"rows_first":2000,"rows_last":500,"rows_between":2000,"halvings":0,"cell_chars":16384,"cell_head_chars":4096},"cells_cut":0,"cells_raw":0,"read":"whole","date_system":"1900"}

{"sheet":"LÜTFEN OKUYUNUZ","index":0,"n_rows":32,"n_cols":1,"rows_kept":32,"cut":false,"hidden":false,"merged":[[0,1,31,1],[0,0,2,0],[15,0,17,0],[29,0,30,0],[18,0,20,0]]}
["1. NORMAL TEBLİGAT FORMUNUN DOLDURULMASI"]
[]
[]
["Normal tebligat, muhataba doğrudan veya aynı adreste yaşayan bir yakınına teslim edilir."]
["Normal Tebligat Formu Nasıl Doldurulur?"]
[]
["Tebligatı Gönderen Makamı Yazın: Mahkeme, noter, icra dairesi veya ilgili resmi kurumun adı eksiksiz bir şekilde yazılmalıdır."]
["Muhatabın Bilgilerini Girin: Muhatabın adı, soyadı ve açık adresi doğru bir şekilde belirtilmelidir."]
["Tebligatın Konusunu Belirtin: Gönderilen belgenin konusu kısa ve net bir şekilde ifade edilmelidir (Örn: Mahkeme celbi, ödeme emri, icra bildirimi)."]
["Tebligatın Teslim Edildiği Kişiyi Belirleyin:"]
["Muhatap adreste ise, tebligat kendisine imza karşılığında teslim edilmelidir."]
["Muhatap adreste bulunmazsa, aynı adreste yaşayan reşit ve ehil bir yakınına teslim edilebilir."]
["Teslim alan kişinin adı, soyadı ve T.C. kimlik numarası eksiksiz bir şekilde yazılmalıdır."]
["Tebligatı Teslim Eden Memurun Bilgilerini Doldurun: Tebligatı teslim eden memurun adı, soyadı ve imzası eklenmelidir."]
["Tebligatın Tarih ve Saatini Yazın: Tebligatın yapıldığı tarih ve saat açık bir şekilde belirtilmelidir."]
[]
[]
[]
["2. 21. MADDEYE GÖRE TEBLİGAT FORMUNUN DOLDURULMASI"]
[]
[]
["Tebligat Kanunu'nun 21. maddesine göre tebligat, muhatap adreste bulunamadığında yapılır."]
["Formda Ekstra Bulunması Gereken Bilgiler:"]
[]
["Muhatabın Adreste Bulunmadığı Bilgisi: Eğer muhatap adreste bulunamıyorsa, bu durum belirtilmelidir (Örn: \"Muhatap adreste bulunamadığından tebligat kapıcıya teslim edilmiştir.\")."]
["Tebligatın Teslim Edildiği Kişi: Kapıcı, apartman yöneticisi, komşu veya iş yerindeki yetkili bir kişi tebligatı alabilir."]
["Teslim alan kişinin adı, soyadı ve T.C. kimlik numarası yazılmalıdır."]
["Adresine Haber Kağıdı Bırakıldığına Dair Not: Muhatabın kapısına \"Tebligatınız komşunuza/kapıcıya teslim edilmiştir, alabilirsiniz\" şeklinde bir not bırakılmalıdır."]
["P.T.T. Memurunun ve Tebligatı Alanın İmzası: Tebligat memuru ve teslim alan kişi formu imzalamalıdır."]
[]
[]
["Eksiksiz ve doğru bilgi girilmelidir. Tarih, saat ve imzalar eksiksiz olmalıdır. 21. maddeye göre tebligatta haber kağıdı mutlaka bırakılmalıdır. Muhatap veya yetkili kişi teslim almazsa, duruma uygun not düşülmelidir."]

{"sheet":"TEBLİGAT GİRİS BİLGİLERİ","index":1,"n_rows":19,"n_cols":12,"rows_kept":19,"cut":false,"hidden":false,"merged":[[2,0,16,0],[10,4,14,4],[4,4,8,4],[12,6,14,6],[18,3,18,10],[1,2,1,11],[2,7,2,10],[2,3,2,6],[3,11,17,11]]}
[]
[null,null,"http://www.bogazici.edu.tr"]
[null,null,null," Tebligat Oluşturmak İçin Aşağıda Belirtilen Yerleri Doldurmanız Yeterlidir.",null,null,null,"TEBLİGAT TÜRÜ"]
[null,null,null,null,null,null,null,null,null,null,null,"TEBLİGAT TÜRÜNÜ SEÇİNİZ"]
[null,null,null,null,"DOSYA"]
[null,null,null,null,null,"İL"]
[null,null,null,null,null,"TEBLİĞ ÇIKARTACAK BİRİM"]
[null,null,null,null,null,"EVRAK NO"]
[null,null,null,null,null,"TAAHÜT NO"]
[]
[null,null,null,null,"MUHATAP","Muhatabın Adı Soyadı / Ünvanı"," "]
[]
[null,null,null,null,null,"ADRES"]
[]
[]
[null,null,null,null,null,"TEBLİĞİ İSTEYEN"]
[null,null,null,null,null,"TEBLİGAT İÇERİĞİ","  "]
[]
[null,null,null,"bogazici.edu.tr"]

{"sheet":"NORMAL TEBLİGAT","index":2,"n_rows":49,"n_cols":54,"rows_kept":49,"cut":false,"hidden":false,"merged":[[6,60,18,81],[38,30,38,56],[48,1,48,56],[44,1,44,27],[45,1,45,27],[41,1,41,27],[42,1,42,27],[43,1,43,27],[39,1,39,27],[31,39,33,56],[33,1,33,27],[30,45,30,55],[31,2,32,13],[40,1,40,27],[34,1,34,27],[35,1,35,27],[36,1,36,27],[31,14,32,21],[37,1,38,27],[18,2,18,28],[25,1,25,56],[27,1,27,56],[22,2,22,28],[23,2,23,28],[23,30,23,56],[20,2,20,28],[21,2,21,28],[21,30,21,55],[22,35,22,52],[10,30,10,56],[13,30,16,56],[11,2,11,28],[11,30,11,56],[7,2,7,28],[1,2,1,55],[6,0,9,0],[3,1,3,28],[3,30,3,44],[3,46,3,56],[4,2,4,28],[4,30,4,44],[4,46,4,56],[5,2,5,28],[8,2,8,28],[9,2,9,28],[8,39,9,56],[5,30,5,44],[5,46,5,56],[6,2,6,28],[20,38,20,74],[6,30,7,41],[6,42,7,47],[30,2,30,18],[29,2,29,18],[28,2,28,18],[14,2,14,28],[15,2,15,28],[17,30,17,56],[19,2,19,28],[19,30,19,56],[17,2,17,28],[12,2,12,28],[12,30,12,55],[13,2,13,28],[10,2,10,28]]}
[]
[]
[]
[null,"T E B L İ Ğ    M A Z B A T A S I",null,null,null,null,null,null,null,null,null,null,null,null,null,null,null,null,null,null,null,null,null,null,null,null,null,null,null,null,{"$f":"+'TEBLİGAT GİRİS BİLGİLERİ'!G5","v":0}]
[null,"1-","Adresinde veya ..........................da muhatap ..........................................",null,null,null,null,null,null,null,null,null,null,null,null,null,null,null,null,null,null,null,null,null,null,null,null,null,null,null,"BOĞAZİÇİ ÜNİVERSİTESİ"]
[null,"2-","........................... sebebiyle muhatap yerine ............................................",null,null,null,null,null,null,null,null,null,null,null,null,null,null,null,null,null,null,null,null,null,null,null,null,null,null,null,{"$f":"'TEBLİGAT GİRİS BİLGİLERİ'!G7","v":0},null,null,null,null,null,null,null,null,null,null,null,null,null,null,null,"İADE EDİLECEĞİ MERCİ"]
["BU ALANDA HİÇ BİR DEĞİŞİKLİK YAPMAYINIZ","3-","Tebliğin yapılamaması ............................... sebebiyle temin edilemediğinden",null,null,null,null,null,null,null,null,null,null,null,null,null,null,null,null,null,null,null,null,null,null,null,null,null,null,null,{"$f":"\"EVRAK NO: \"&'TEBLİGAT GİRİS BİLGİLERİ'!G8","v":"EVRAK NO: "},null,null,null,null,null,null,null,null,null,null,null,null,null,null,null,null,null,null,"Taahhüt No:"]
[null,null,"............................................................................................................"]
[null,"4-","Muhatabın muvakkaten ..................... gittiği ............................. Tarafından",null,null,null,null,null,null,null,null,null,null,null,null,null,null,null,null,null,null,null,null,null,null,null,null,null,null,null,null,null,null,null,null,null,null,null,null,{"$f":"'TEBLİGAT GİRİS BİLGİLERİ'!G9","v":0}]
[null,null,"bildirildiğinden ......................................................................................."]
[null,"5-","(...........) mehil tayin edilip (ikinci defa) tebligat çıkarıldığından keyfiyet haber",null,null,null,null,null,null,null,null,null,null,null,null,null,null,null,null,null,null,null,null,null,null,null,null,null,null,null,"Muhatabın"]
[null,null,"verilerek muhatap yerine ......................................................................",null,null,null,null,null,null,null,null,null,null,null,null,null,null,null,null,null,null,null,null,null,null,null,null,null,null,null,"ADI SOYADI ve ADRESİ:"]
[null,"6-",".............................................. tebellüğden imtina ettiğinden ..................",null,null,null,null,null,null,null,null,null,null,null,null,null,null,null,null,null,null,null,null,null,null,null,null,null,null,null,{"$f":"'TEBLİGAT GİRİS BİLGİLERİ'!G11&\" \"&'TEBLİGAT GİRİS BİLGİLERİ'!G13:G15","v":"  "}]
[null,null,"........................................................................................................",null,null,null,null,null,null,null,null,null,null,null,null,null,null,null,null,null,null,null,null,null,null,null,null,null,null,null,{"$f":"'TEBLİGAT GİRİS BİLGİLERİ'!G13:G15","v":0}]
[null,"7-","Adreste kimse bulunmaması üzerine ...................................................."]
[null,"8-","Tebliğ yapılacak kimse  ..................................... sebebiyle imtina ettiğinden "]
[]
[null,null,"Tebligat yapılanın:",null,null,null,null,null,null,null,null,null,null,null,null,null,null,null,null,null,null,null,null,null,null,null,null,null,null,null,"                                                        Mühür ve İmza"]
[null,null,"(Tebliğ Tarihi)                        (Parmak izi)                              (İmzası)"]
["NORMAL TEBLİGAT HAZIRLIYORSUNUZ",null,"..................                           ......................                         .............."]
[null,null,"Tebliğ memurunun imzası",null,null,null,null,null,null,null,null,null,null,null,null,null,null,null,null,null,null,null,null,null,null,null,null,null,null,null,"TEBLİĞ İSTEYEN:",null,null,null,null,null,null,null,{"$f":"'TEBLİGAT GİRİS BİLGİLERİ'!G16","v":0}]
[]
[null,null,"Muhatap adresini değiştirmişse tebliğ memuru tarafından tespit edilen yeni",null,null,null,null,null,null,null,null,null,null,null,null,null,null,null,null,null,null,null,null,null,null,null,null,null,null,null,"BU ZARFTA",null,null,null,null,{"$f":"'TEBLİGAT GİRİS BİLGİLERİ'!G17","v":"  "},null,null,null,null,null,null,null,null,null,null,null,null,null,null,null,null,null,"VARDIR"]
[null,null,"adresi:"]
[]
[null,"----------------------------------------------------------------------------------------------------------------------------------------------------------"]
[]
[null,"T E B L İ Ğ     Z A R F I "]
[null,null,{"$f":"+AE4","v":0}]
[null,null,{"$f":"+AE5","v":"BOĞAZİÇİ ÜNİVERSİTESİ"}]
[null,null,{"$f":"+AE6","v":0},null,null,null,null,null,null,null,null,null,null,null,null,null,null,null,null,null,null,null,null,null,null,null,null,null,null,null,null,null,null,null,null,null,null,null,null,null,null,null,null,null,null,"Taahhüt No:"]
[null,null,{"$f":"(AE7)","v":"EVRAK NO: "},null,null,null,null,null,null,null,null,null,null,null,{"$f":"AQ7","v":0},null,null,null,null,null,null,null,null,null,null,null,null,null,null,null,null,null,null,null,null,null,null,null,null,{"$f":"'TEBLİGAT GİRİS BİLGİLERİ'!G9","v":0}]
[]
[null,"Muhatabın"]
[null,"ADI SOYADI ve ADRESİ:"]
[null,{"$f":"+AE13","v":"  "}]
[null,{"$f":"+AE14","v":0}]
[null,{"$f":"AE15","v":0}]
[null,null,null,null,null,null,null,null,null,null,null,null,null,null,null,null,null,null,null,null,null,null,null,null,null,null,null,null,null,null,"                                                        Mühür ve İmza"]
[]
[null,{"$f":"+#REF!","v":{"$error":"#REF!"}}]
[]
[null,"BU ZARFTA;"]
[null,{"$f":"AJ23","v":"  "}]
[null,"VARDIR"]
[]
[null,null,null,null,null,null,null,null,null,null,null,null,null,null,null,null,null,null,null,null,null,null,null,null,null,null,null,null,null,null,null,null,null," "]
[]
[null,"----------------------------------------------------------------------------------------------------------------------------------------------------------"]

{"sheet":"21'E GÖRE TEBLİGAT","index":3,"n_rows":51,"n_cols":54,"rows_kept":51,"cut":false,"hidden":false,"merged":[[8,61,17,77],[39,30,39,56],[36,1,36,27],[28,1,28,56],[29,2,29,15],[30,2,30,15],[37,1,37,27],[38,1,38,27],[39,1,39,27],[23,30,23,56],[50,1,50,56],[24,1,25,56],[22,1,23,28],[41,30,43,51],[47,1,47,56],[48,1,49,56],[42,1,42,27],[35,1,35,27],[45,1,45,27],[46,1,46,27],[43,1,43,27],[44,1,44,27],[40,1,40,27],[41,1,41,27],[26,1,26,56],[31,2,31,15],[31,45,31,55],[32,39,34,56],[34,1,34,27],[21,2,21,28],[21,30,21,55],[22,35,22,52],[17,2,17,28],[18,2,18,28],[19,2,19,28],[19,30,19,56],[17,30,18,56],[15,2,15,28],[14,30,15,55],[16,2,16,28],[16,30,16,55],[20,2,20,28],[5,2,5,28],[5,30,5,44],[5,46,5,56],[6,2,6,28],[7,2,7,28],[6,30,7,41],[6,42,7,47],[1,2,1,55],[3,1,3,28],[3,30,3,44],[3,46,3,56],[4,2,4,28],[4,30,4,44],[4,46,4,56],[10,30,10,56],[32,2,33,13],[32,14,33,20],[21,0,29,0],[6,0,9,0],[9,2,9,28],[10,2,10,28],[11,2,11,28],[11,30,11,56],[12,2,12,28],[8,2,8,28],[8,39,9,56],[12,30,12,55],[13,2,13,28],[13,30,13,55],[14,2,14,28]]}
[]
[]
[]
[null,"T E B L İ Ğ    M A Z B A T A S I",null,null,null,null,null,null,null,null,null,null,null,null,null,null,null,null,null,null,null,null,null,null,null,null,null,null,null,null,{"$f":"+'TEBLİGAT GİRİS BİLGİLERİ'!G5","v":0}]
[null,"1-","Adresinde veya ..........................da muhatap ..........................................",null,null,null,null,null,null,null,null,null,null,null,null,null,null,null,null,null,null,null,null,null,null,null,null,null,null,null,"BOĞAZİÇİ ÜNİVERSİTESİ"]
[null,"2-","........................... sebebiyle muhatap yerine ............................................",null,null,null,null,null,null,null,null,null,null,null,null,null,null,null,null,null,null,null,null,null,null,null,null,null,null,null,null,null,null,null,null,null,null,null,null,null,null,null,null,null,null,null,"İADE EDİLECEĞİ MERCİ"]
["BU ALANDA HİÇ BİR DEĞİŞİKLİK YAPMAYINIZ","3-","Tebliğin yapılamaması ............................... sebebiyle temin edilemediğinden",null,null,null,null,null,null,null,null,null,null,null,null,null,null,null,null,null,null,null,null,null,null,null,null,null,null,null,{"$f":"\"EVRAK NO:\"&'TEBLİGAT GİRİS BİLGİLERİ'!G8","v":"EVRAK NO:"},null,null,null,null,null,null,null,null,null,null,null,null,null,null,null,null,null,null,"Taahhüt No:"]
[null,null,"............................................................................................................"]
[null,"4-","Muhatabın muvakkaten ..................... gittiği ............................. Tarafından",null,null,null,null,null,null,null,null,null,null,null,null,null,null,null,null,null,null,null,null,null,null,null,null,null,null,null,null,null,null,null,null,null,null,null,null,{"$f":"'TEBLİGAT GİRİS BİLGİLERİ'!G9","v":0}]
[null,null,"bildirildiğinden ......................................................................................."]
[null,"5-","(...........) mehil tayin edilip (ikinci defa) tebligat çıkarıldığından keyfiyet haber",null,null,null,null,null,null,null,null,null,null,null,null,null,null,null,null,null,null,null,null,null,null,null,null,null,null,null,"Muhatabın"]
[null,null,"verilerek muhatap yerine ......................................................................",null,null,null,null,null,null,null,null,null,null,null,null,null,null,null,null,null,null,null,null,null,null,null,null,null,null,null,"ADI SOYADI ve ADRESİ:"]
[null,"6-",".............................................. tebellüğden imtina ettiğinden ..................",null,null,null,null,null,null,null,null,null,null,null,null,null,null,null,null,null,null,null,null,null,null,null,null,null,null,null,{"$f":"'TEBLİGAT GİRİS BİLGİLERİ'!G11&\" \"&'TEBLİGAT GİRİS BİLGİLERİ'!G13:G15","v":"  "}]
[null,null,"........................................................................................................"]
[null,"7-","Adreste kimse bulunmaması üzerine ....................................................",null,null,null,null,null,null,null,null,null,null,null,null,null,null,null,null,null,null,null,null,null,null,null,null,null,null,null,{"$f":"'TEBLİGAT GİRİS BİLGİLERİ'!G13:G15","v":0}]
[null,"8-","Tebliğ yapılacak kimse  ..................................... sebebiyle imtina ettiğinden "]
[null,null,"......................................... huzurunda ................................................."]
[null,null,"Tebligat yapılanın:",null,null,null,null,null,null,null,null,null,null,null,null,null,null,null,null,null,null,null,null,null,null,null,null,null,null,null,"(ADRES KAYIT SİSTEMİNDEKİ MERNİS ADRESİDİR)                                                     Tebligat yapılamaması halinde T.K. 21.* maddesine göre tebliğ "]
[null,null,"(Tebliğ Tarihi)                        (Parmak izi)                              (İmzası)"]
[null,null,"..................                           ......................                         .............."]
[null,null,"Tebliğ memurunun imzası",null,null,null,null,null,null,null,null,null,null,null,null,null,null,null,null,null,null,null,null,null,null,null,null,null,null,null,"TEBLİĞ İSTEYEN:",null,null,null,null,null,null,null,{"$f":"'TEBLİGAT GİRİS BİLGİLERİ'!G16","v":0}]
["TEBLİGAT KANUNU 21. MADDEYE GÖRE TEBLİGAT HAZIRLIYORSUNUZ"]
[null,"POSTA MEMURU'NUN DİKKATİNE",null,null,null,null,null,null,null,null,null,null,null,null,null,null,null,null,null,null,null,null,null,null,null,null,null,null,null,null,"BU ZARFTA",null,null,null,null,{"$f":"'TEBLİGAT GİRİS BİLGİLERİ'!G17","v":"  "},null,null,null,null,null,null,null,null,null,null,null,null,null,null,null,null,null,"VARDIR"]
[]
[null,"*T.K. md.21/2 (Ek fıkra: 11/01/2011-6099 S.K./5.mad.) Gösterilen adres muhatabın adres kayıt sistemindeki adresi olup, muhatap o adreste hiç oturmamış veya o adresten sürekli olarak ayrılmış olsa dahi, tebliğ memuru tebliğ olunacak evrakı, o yerin muhtar veya ihtiyar heyeti azasından birine veyahut zabıta amir veya memurlarına imza karşılığında teslim eder ve tesellüm edenin adresini ihtiva eden ihbarnameyi gösterilen adresteki binanın kapısına yapıştırır. İhbarnamenin kapıya yapıştırıldığı tarih, tebliğ tarihi sayılır.(Tebligat Kanunu 21/2 maddesi uygulaması hatırlatmasıdır)"]
[]
[null,"----------------------------------------------------------------------------------------------------------------------------------------------------------"]
[]
[null,"T E B L İ Ğ     Z A R F I "]
[null,null,{"$f":"+AE4","v":0}]
[null,null,{"$f":"+AE5","v":"BOĞAZİÇİ ÜNİVERSİTESİ"}]
[null,null,{"$f":"+AE6","v":0},null,null,null,null,null,null,null,null,null,null,null,null,null,null,null,null,null,null,null,null,null,null,null,null,null,null,null,null,null,null,null,null,null,null,null,null,null,null,null,null,null,null,"Taahhüt No:"]
[null,null,null,null,null,null,null,null,null,null,null,null,null,null,{"$f":"AQ7","v":0},null,null,null,null,null,null,null,null,null,null,null,null,null,null,null,null,null,null,null,null,null,null,null,null,{"$f":"'TEBLİGAT GİRİS BİLGİLERİ'!G9","v":0}]
[]
[null,"Muhatabın"]
[null,"ADI SOYADI ve ADRESİ:"]
[null,{"$f":"AE13","v":"  "}]
[null,{"$f":"AE14","v":0}]
[null,{"$f":"AE15","v":0}]
[null,{"$f":"+AE16","v":0},null,null,null,null,null,null,null,null,null,null,null,null,null,null,null,null,null,null,null,null,null,null,null,null,null,null,null,null,"                                                        Mühür ve İmza"]
[null,{"$f":"+AE17","v":0}]
[null,{"$f":"+AE18","v":"(ADRES KAYIT SİSTEMİNDEKİ MERNİS ADRESİDİR)                                                     Tebligat yapılamaması halinde T.K. 21.* maddesine göre tebliğ "},null,null,null,null,null,null,null,null,null,null,null,null,null,null,null,null,null,null,null,null,null,null,null,null,null,null,null,null,"(ADRES KAYIT SİSTEMİNDEKİ MERNİS ADRESİDİR)                           Tebligat yapılamaması halinde T.K. 21.* maddesine göre tebliğ "]
[]
[]
[null,"BU ZARFTA;"]
[null,{"$f":"AJ23","v":"  "}]
[null,"VARDIR"]
[null,"POSTA MEMURU'NUN DİKKATİNE"]
[null,"*T.K. md.21/2 (Ek fıkra: 11/01/2011-6099 S.K./5.mad.) Gösterilen adres muhatabın adres kayıt sistemindeki adresi olup, muhatap o adreste hiç oturmamış veya o adresten sürekli olarak ayrılmış olsa dahi, tebliğ memuru tebliğ olunacak evrakı, o yerin muhtar veya ihtiyar heyeti azasından birine veyahut zabıta amir veya memurlarına imza karşılığında teslim eder ve tesellüm edenin adresini ihtiva eden ihbarnameyi gösterilen adresteki binanın kapısına yapıştırır. İhbarnamenin kapıya yapıştırıldığı tarih, tebliğ tarihi sayılır.(Tebligat Kanunu 21/2 maddesi uygulaması hatırlatmasıdır)"]
[]
[null,"-----------------------------------------------------------------------------------------------------------------------------------------------------------------------------"]